fUST/lending_fUST_20240702
["ID","MTS","AMOUNT","RATE_DAILY","PERIOD"]
[330836479,1719849602093,576.08003937,0.00014999,2]
[330836480,1719849608585,329.32195945,0.00014999,2]
[330836481,1719849608746,154.83742071,0.00014999,2]
[330836482,1719849622067,2794.43053546,0.00014999,2]
[330836483,1719849642233,2098.79579232,0.00014999,2]
[330836484,1719849700269,181.77332687,0.00014999,2]
[330836485,1719849715262,181.77332687,0.00014999,2]
[330836486,1719849773236,2097.61127784,0.00014999,2]
[330836497,1719850150101,-935.21,0.00015435,2]
[330836498,1719850150130,-500.0,0.00015435,2]
[330836499,1719850150156,-1667.14,0.00015435,2]
[330836500,1719850150181,-500.0,0.00015435,2]
[330836501,1719850150207,-500.0,0.00015435,2]
[330836502,1719850150228,-500.0,0.00015499,2]
[330836503,1719850150250,-500.0,0.00015499,2]
[330836504,1719850150273,-500.0,0.00015499,2]
[330836505,1719850150301,-500.0,0.00015499,2]
[330836506,1719850150325,-1000.0,0.000155,2]
[330836507,1719850150348,-153.155,0.00015865,2]
[330836508,1719850150371,-969.12,0.00015865,2]
[330836509,1719850150399,-402.29240933,0.00015878,2]
[330836510,1719850150424,-503.94876905,0.00015977,2]
[330836511,1719850150447,-500.0,0.00015977,2]
[330836512,1719850150470,-505.94677792,0.00015977,2]
[330836513,1719850150493,-500.0,0.00015977,2]
[330836514,1719850150515,-500.0,0.00015977,2]
[330836515,1719850150537,-500.0,0.00015977,2]
[330836516,1719850150559,-500.0,0.00015977,2]
[330836517,1719850150580,-500.0,0.00015977,2]
[330836518,1719850150600,-1204.35,0.00015977,2]
[330836519,1719850150622,-557.70031434,0.00015977,2]
[330836520,1719850150647,-500.0,0.00015977,2]
[330836521,1719850150669,-500.0,0.00015977,2]
[330836522,1719850150690,-500.0,0.00015978,2]
[330836523,1719850150710,-509.40229089,0.00015978,2]
[330836524,1719850150730,-500.0,0.00015978,2]
[330836525,1719850150752,-500.0,0.00015978,2]
[330836526,1719850150773,-602.91,0.00015978,2]
[330836527,1719850150795,-500.0,0.00015978,2]
[330836528,1719850150816,-500.0,0.00015978,2]
[330836529,1719850150835,-530.2,0.00015978,2]
[330836530,1719850150856,-500.0,0.00015978,2]
[330836531,1719850150878,-500.0,0.00015978,2]
[330836532,1719850150899,-500.0,0.00015978,2]
[330836533,1719850150921,-2380.15,0.00015978,2]
[330836534,1719850150941,-500.0,0.00015978,2]
[330836535,1719850150964,-718.74,0.00015978,2]
[330836536,1719850150983,-504.94197661,0.00015978,2]
[330836537,1719850151004,-1134.28,0.00015978,2]
[330836538,1719850151025,-163.41462026,0.00015978,2]
[330836539,1719850151045,-500.0,0.00015978,2]
[330836540,1719850151066,-500.0,0.00015978,2]
[330836541,1719850151088,-2669.13,0.00015978,2]
[330836542,1719850151108,-500.0,0.00015978,2]
[330836543,1719850151132,-378.52165484,0.00015978,2]
[330836544,1719850151153,-550.45,0.00015978,2]
[330836545,1719850151174,-500.0,0.00015978,2]
[330836546,1719850151194,-543.47,0.00015978,2]
[330836547,1719850151214,-500.0,0.00015978,2]
[330836548,1719850151236,-2436.89,0.00015978,2]
[330836549,1719850151408,-500.0,0.00015978,2]
[330836550,1719850151430,-500.0,0.00015978,2]
[330836551,1719850151451,-500.0,0.00015978,2]
[330836552,1719850151471,-500.0,0.00015978,2]
[330836553,1719850151491,-500.0,0.00015978,2]
[330836554,1719850151514,-652.83,0.00015978,2]
[330836555,1719850151534,-371.32891767,0.00015978,2]
[330836556,1719850151555,-500.0,0.00015978,2]
[330836557,1719850151575,-3015.87,0.00015978,2]
[330836558,1719850151594,-500.0,0.00015978,2]
[330836559,1719850151614,-500.0,0.00015978,2]
[330836560,1719850151636,-500.0,0.00015978,2]
[330836561,1719850151657,-658.93,0.00015978,2]
[330836562,1719850151677,-500.0,0.00015978,2]
[330836563,1719850151699,-500.0,0.00015978,2]
[330836564,1719850151718,-500.0,0.00015978,2]
[330836565,1719850151740,-500.0,0.00015981,2]
[330836566,1719850151760,-500.0,0.00015981,2]
[330836567,1719850151783,-500.0,0.00015981,2]
[330836568,1719850151805,-1107.9,0.00015981,2]
[330836569,1719850151826,-500.0,0.00015981,2]
[330836570,1719850151848,-500.0,0.00015981,2]
[330836571,1719850151870,-500.0,0.00015981,2]
[330836572,1719850151894,-500.0,0.00015981,2]
[330836573,1719850151916,-500.0,0.00015981,2]
[330836574,1719850151938,-519.13,0.00015981,2]
[330836575,1719850151960,-935.21,0.00015983,2]
[330836576,1719850151982,-500.0,0.00015983,2]
[330836577,1719850152007,-63.44157366,0.00015983,2]
[330836578,1719850168081,-500.0,0.00015499,2]
[330836579,1719850168102,-500.0,0.00015978,2]
[330836580,1719850168123,-1426.02989513,0.00015983,2]
[330836659,1719850238037,-500.0,0.00015435,2]
[330836661,1719850238047,-1899.638932,0.00015435,2]
[330836663,1719850238065,-990.571068,0.00015435,2]
[330836665,1719850238074,-500.0,0.00015435,2]
[330836667,1719850238084,-500.0,0.00015499,2]
[330836669,1719850238093,-1000.0,0.000155,2]
[330836671,1719850238102,-877.0,0.00015964,2]
[330836672,1719850238112,-1487.59,0.00015977,2]
[330836674,1719850238121,-500.0,0.00015977,2]
[330836676,1719850238131,-642.26,0.00015977,2]
[330836678,1719850238142,-500.0,0.00015977,2]
[330836680,1719850238153,-688.79,0.00015977,2]
[330836682,1719850238162,-500.0,0.00015978,2]
[330836684,1719850238172,-500.0,0.00015978,2]
[330836685,1719850238182,-1087.02,0.00015978,2]
[330836687,1719850238193,-500.0,0.00015978,2]
[330836689,1719850238203,-177.66853121,0.00015983,2]
[330836691,1719850238213,-500.0,0.00015983,2]
[330836693,1719850238223,-500.0,0.00015983,2]
[330836695,1719850238232,-500.0,0.00015983,2]
[330836697,1719850238243,-2890.21,0.00015983,2]
[330836699,1719850238252,-500.0,0.00015983,2]
[330836701,1719850238263,-1000.0,0.00016,4]
[330836703,1719850238273,-1000.0,0.00016,2]
[330836705,1719850238282,-500.0,0.00016047,2]
[330836706,1719850238292,-500.0,0.00016047,2]
[330836708,1719850238302,-500.0,0.00016047,2]
[330836710,1719850238312,-500.0,0.00016047,2]
[330836712,1719850238322,-2169.8,0.00016251,2]
[330836714,1719850238333,-500.0,0.00016251,2]
[330836716,1719850238343,-500.0,0.00016251,2]
[330836718,1719850238354,-500.0,0.00016251,2]
[330836719,1719850238366,-3072.18,0.00016252,2]
[330836721,1719850238376,-280.29,0.00016253,2]
[330836723,1719850238386,-71693.98172263,0.00016254,2]
[330836725,1719850238399,-261.93938859,0.00016254,2]
[330836727,1719850238409,-523.38559337,0.00016254,2]
[330836729,1719850238419,-4845.3150559,0.00016255,2]
[330836731,1719850238430,-57192.36374084,0.00016255,2]
[330836732,1719850238443,-17244.25346368,0.00016255,2]
[330836734,1719850238455,-42219.78058169,0.00016255,2]
[330836736,1719850238465,-30000.0,0.00016255,2]
[330836738,1719850238475,-25759.98456565,0.00016255,2]
[330836740,1719850238488,-320.99981459,0.00016255,2]
[330836742,1719850238498,-151.0,0.00016255,2]
[330836744,1719850238508,-152.348545,0.00016255,2]
[330836745,1719850238517,-151.363456,0.00016255,2]
[330836746,1719850238527,-151.0,0.00016255,2]
[330836747,1719850238538,-151.0,0.00016255,2]
[330836748,1719850238548,-310.429144,0.00016255,2]
[330836749,1719850238558,-310.429144,0.00016255,2]
[330836750,1719850238567,-151.0,0.00016255,2]
[330836751,1719850238577,-151.0,0.00016255,2]
[330836752,1719850238587,-151.0,0.00016255,2]
[330836753,1719850238597,-151.0,0.00016255,2]
[330836754,1719850238609,-151.0,0.00016255,2]
[330836755,1719850238619,-151.0,0.00016255,2]
[330836756,1719850238629,-200.0,0.00016255,2]
[330836757,1719850238639,-151.0,0.00016255,2]
[330836758,1719850238649,-151.0,0.00016255,2]
[330836759,1719850238659,-151.0,0.00016255,2]
[330836760,1719850238670,-526.376063,0.00016255,2]
[330836761,1719850238680,-526.376063,0.00016255,2]
[330836762,1719850238696,-1000.0,0.000165,2]
[330836763,1719850238705,-500.0,0.00016525,2]
[330836764,1719850238715,-500.0,0.00016525,2]
[330836765,1719850238725,-251.17115951,0.00016525,2]
[330836766,1719850238735,-500.0,0.00016525,2]
[330836767,1719850238745,-500.0,0.00016525,2]
[330836768,1719850238755,-1204.35,0.00016525,2]
[330836769,1719850238764,-500.0,0.00016525,2]
[330836770,1719850238774,-500.0,0.00016525,2]
[330836771,1719850238784,-1487.59,0.00016525,2]
[330836775,1719850238940,-500.0,0.00016525,2]
[330836776,1719850238957,-500.0,0.00016525,2]
[330836777,1719850238967,-688.79,0.00016525,2]
[330836778,1719850238977,-500.0,0.00016526,2]
[330836779,1719850238986,-602.91,0.00016526,2]
[330836780,1719850238995,-500.0,0.00016526,2]
[330836781,1719850239005,-530.2,0.00016526,2]
[330836782,1719850239016,-500.0,0.00016526,2]
[330836783,1719850239026,-500.0,0.00016526,2]
[330836784,1719850239036,-500.0,0.00016526,2]
[330836785,1719850239047,-336.36835521,0.00016526,2]
[330836786,1719850239058,-2669.13,0.00016526,2]
[330836787,1719850239068,-550.45,0.00016526,2]
[330836788,1719850239079,-500.0,0.00016526,2]
[330836789,1719850239090,-543.47,0.00016526,2]
[330836790,1719850239101,-500.0,0.00016526,2]
[330836791,1719850239111,-2436.89,0.00016526,2]
[330836792,1719850239121,-500.0,0.00016526,2]
[330836793,1719850239131,-500.0,0.00016526,2]
[330836794,1719850239144,-500.0,0.00016526,2]
[330836795,1719850239156,-500.0,0.00016526,2]
[330836796,1719850239167,-652.83,0.00016526,2]
[330836797,1719850239178,-500.0,0.00016526,2]
[330836798,1719850239188,-500.0,0.00016526,2]
[330836799,1719850239200,-500.0,0.00016526,2]
[330836800,1719850239210,-658.93,0.00016526,2]
[330836801,1719850239222,-484.48878253,0.00016526,2]
[330836802,1719850239232,-500.0,0.00016526,2]
[330836803,1719850239242,-500.0,0.00016526,2]
[330836804,1719850239252,-500.0,0.00016526,2]
[330836805,1719850239263,-356.86016604,0.00016526,2]
[330836806,1719850239273,-500.0,0.00016526,2]
[330836807,1719850239283,-500.0,0.00016529,2]
[330836808,1719850239294,-500.0,0.00016529,2]
[330836809,1719850239304,-1107.9,0.00016529,2]
[330836810,1719850239314,-500.0,0.00016529,2]
[330836811,1719850239324,-500.0,0.00016529,2]
[330836812,1719850239334,-500.0,0.00016529,2]
[330836813,1719850239347,-500.0,0.00016529,2]
[330836814,1719850239359,-519.13,0.00016529,2]
[330836815,1719850239369,-310.429144,0.0001653,2]
[330836816,1719850239379,-310.429144,0.0001653,2]
[330836817,1719850239390,-210.779414,0.0001653,2]
[330836819,1719850239400,-151.0,0.0001653,2]
[330836820,1719850239411,-151.0,0.0001653,2]
[330836821,1719850239422,-301.710496,0.0001653,2]
[330836822,1719850239639,-151.0,0.0001653,2]
[330836823,1719850239650,-151.0,0.0001653,2]
[330836824,1719850239660,-526.376063,0.0001653,2]
[330836825,1719850239671,-526.376063,0.0001653,2]
[330836826,1719850239680,-151.0,0.0001653,2]
[330836827,1719850239691,-500.0,0.00016531,2]
[330836828,1719850239703,-1667.14,0.00016531,2]
[330836829,1719850239713,-500.0,0.00016531,2]
[330836830,1719850239724,-500.0,0.00016531,2]
[330836831,1719850239734,-500.0,0.00016531,2]
[330836832,1719850239745,-2890.21,0.00016531,2]
[330836833,1719850239755,-500.0,0.00016531,2]
[330836834,1719850239766,-151.0,0.00016531,2]
[330836835,1719850239776,-151.0,0.00016595,2]
[330836836,1719850239787,-151.0,0.00016595,2]
[330836837,1719850239798,-151.0,0.00016595,2]
[330836838,1719850239808,-151.0,0.00016595,2]
[330836839,1719850239819,-500.0,0.00016595,2]
[330836840,1719850239830,-500.0,0.00016595,2]
[330836841,1719850239840,-500.0,0.00016595,2]
[330836842,1719850239851,-500.0,0.00016595,2]
[330836843,1719850239861,-155.0,0.000166,2]
[330836844,1719850239872,-598.0,0.000166,2]
[330836845,1719850239882,-530.4646089,0.0001671,2]
[330836846,1719850239892,-2169.8,0.00016799,2]
[330836847,1719850239902,-500.0,0.00016799,2]
[330836848,1719850239912,-500.0,0.00016799,2]
[330836849,1719850239922,-500.0,0.00016799,2]
[330836850,1719850239932,-3072.18,0.000168,2]
[330836851,1719850239944,-242.70407742,0.00016801,2]
[330836852,1719850239956,-1000.0,0.00017,2]
[330836853,1719850239967,-500.0,0.00017073,2]
[330836854,1719850239978,-500.0,0.00017073,2]
[330836855,1719850239988,-500.0,0.00017073,2]
[330836856,1719850239999,-500.0,0.00017073,2]
[330836857,1719850240009,-1204.35,0.00017073,2]
[330836858,1719850240019,-500.0,0.00017073,2]
[330836859,1719850240029,-500.0,0.00017073,2]
[330836860,1719850240040,-1487.59,0.00017073,2]
[330836861,1719850240050,-500.0,0.00017073,2]
[330836862,1719850240060,-500.0,0.00017073,2]
[330836863,1719850240071,-688.79,0.00017073,2]
[330836864,1719850240081,-500.0,0.00017074,2]
[330836865,1719850240092,-602.91,0.00017074,2]
[330836866,1719850240103,-500.0,0.00017074,2]
[330836868,1719850240113,-530.2,0.00017074,2]
[330836869,1719850240124,-500.0,0.00017074,2]
[330836871,1719850240136,-500.0,0.00017074,2]
[330836873,1719850240148,-500.0,0.00017074,2]
[330836874,1719850240160,-2669.13,0.00017074,2]
[330836875,1719850240170,-550.45,0.00017074,2]
[330836876,1719850240182,-500.0,0.00017074,2]
[330836877,1719850240193,-543.47,0.00017074,2]
[330836878,1719850240206,-500.0,0.00017074,2]
[330836879,1719850240216,-2436.89,0.00017074,2]
[330836880,1719850240226,-500.0,0.00017074,2]
[330836881,1719850240239,-500.0,0.00017074,2]
[330836882,1719850240249,-171.90726403,0.00017074,2]
[330836883,1719850240265,-328.09273597,0.00017074,2]
[330836884,1719850240275,-329.98166084,0.00017074,2]
[330836885,1719850240286,-652.83,0.00017074,2]
[330836886,1719850240297,-500.0,0.00017074,2]
[330836887,1719850240309,-500.0,0.00017074,2]
[330836888,1719850240319,-500.0,0.00017074,2]
[330836889,1719850240329,-658.93,0.00017074,2]
[330836890,1719850240340,-500.0,0.00017074,2]
[330836891,1719850240353,-500.0,0.00017074,2]
[330836893,1719850240371,-636.14291336,0.00017074,2]
[330836895,1719850240382,-151.0,0.00017074,2]
[330836898,1719850240393,-500.0,0.00017074,2]
[330836900,1719850240404,-151.0,0.00017075,2]
[330836902,1719850240416,-526.376063,0.00017075,2]
[330836904,1719850240426,-526.376063,0.00017075,2]
[330836906,1719850240437,-57.30597414,0.00017077,2]
[330836912,1719850240611,-857.28,0.00015434,2]
[330836913,1719850240621,-857.28,0.00015982,2]
[330836914,1719850240631,-857.28,0.0001653,2]
[330836915,1719850240641,-442.69402586,0.00017077,2]
[330836916,1719850240651,-500.0,0.00017077,2]
[330836917,1719850240660,-1107.9,0.00017077,2]
[330836918,1719850240670,-500.0,0.00017077,2]
[330836919,1719850240679,-500.0,0.00017077,2]
[330836920,1719850240689,-500.0,0.00017077,2]
[330836921,1719850240699,-500.0,0.00017077,2]
[330836922,1719850240709,-310.429144,0.00017077,2]
[330836923,1719850240719,-310.429144,0.00017077,2]
[330836924,1719850240728,-151.0,0.00017077,2]
[330836925,1719850240738,-519.13,0.00017077,2]
[330836926,1719850240747,-151.0,0.00017077,2]
[330836927,1719850240757,-151.0,0.00017077,2]
[330836928,1719850240766,-151.0,0.00017077,2]
[330836929,1719850240776,-151.0,0.00017078,2]
[330836930,1719850240785,-857.28,0.00017078,2]
[330836931,1719850240794,-500.0,0.00017079,2]
[330836932,1719850240804,-1667.14,0.00017079,2]
[330836933,1719850240814,-500.0,0.00017079,2]
[330836934,1719850240825,-500.0,0.00017079,2]
[330836935,1719850240834,-500.0,0.00017079,2]
[330836936,1719850240844,-2890.21,0.00017079,2]
[330836937,1719850240853,-500.0,0.00017079,2]
[330836938,1719850240863,-151.0,0.00017143,2]
[330836939,1719850240872,-151.0,0.00017143,2]
[330836940,1719850240882,-500.0,0.00017143,2]
[330836941,1719850240892,-500.0,0.00017143,2]
[330836942,1719850240901,-500.0,0.00017143,2]
[330836943,1719850240911,-500.0,0.00017143,2]
[330836944,1719850240920,-2169.8,0.00017347,2]
[330836945,1719850240930,-531.15465438,0.00017347,2]
[330836946,1719850240939,-500.0,0.00017347,2]
[330836947,1719850240950,-500.0,0.00017347,2]
[330836948,1719850240960,-3072.18,0.00017348,2]
[330836949,1719850240969,-1000.0,0.000175,2]
[330836950,1719850240978,-155.0,0.0001756,2]
[330836951,1719850240988,-120.41103746,0.000176,2]
[330836995,1719850422068,2418.00582464,0.00015,2]
[330836996,1719850473387,159.69487433,0.00014999,2]
[330836997,1719850479456,182.14583763,0.00014999,2]
[330836998,1719850497231,159.70589002,0.00014999,2]
[330837000,1719850514038,155.04195884,0.00014999,2]
[330837003,1719850583146,150.0,0.00025,120]
[330837004,1719850636988,2065.3768022,0.0001498,2]
[330837006,1719850719587,155.31672945,0.00014999,2]
[330837008,1719851234982,843.57617703,0.00014999,2]
[330837009,1719851239842,2129.54772975,0.00014999,2]
[330837010,1719851246462,1330.1732793,0.00014999,2]
[330837011,1719851246610,1314.34115228,0.00014999,2]
[330837012,1719851247086,-211.60625231,0.000155,2]
[330837013,1719851251634,597.79480567,0.00014999,2]
[330837014,1719851260289,1913.78185736,0.00014999,2]
[330837015,1719851276862,724.58678945,0.00014999,2]
[330837016,1719851350126,-788.39374769,0.000155,2]
[330837017,1719851350148,-527.92433505,0.0001588,2]
[330837018,1719851350168,-500.0,0.00015977,2]
[330837019,1719851350188,-484.48878253,0.00015977,2]
[330837020,1719851350208,-500.0,0.00015977,2]
[330837021,1719851350229,-356.86016604,0.00015977,2]
[330837022,1719851350248,-500.0,0.00015977,2]
[330837023,1719851350268,-512.91294159,0.00015977,2]
[330837024,1719851350288,-500.0,0.00015977,2]
[330837025,1719851350310,-500.0,0.00015977,2]
[330837026,1719851350331,-542.73,0.00015977,2]
[330837027,1719851350351,-500.0,0.00015977,2]
[330837028,1719851350370,-502.79453003,0.00015977,2]
[330837029,1719851350391,-504.85955897,0.00015977,2]
[330837030,1719851350412,-500.0,0.00015977,2]
[330837031,1719851350433,-502.68701016,0.00015977,2]
[330837032,1719851350596,-500.0,0.00015977,2]
[330837033,1719851350617,-505.9228765,0.00015977,2]
[330837034,1719851350640,-503.9802062,0.00015977,2]
[330837035,1719851350660,-564.56,0.00015977,2]
[330837036,1719851350681,-500.0,0.00015977,2]
[330837037,1719851350706,-508.51266134,0.00015977,2]
[330837038,1719851350726,-500.0,0.00015978,2]
[330837039,1719851350748,-500.0,0.00015978,2]
[330837040,1719851350770,-1103.98,0.00015978,2]
[330837041,1719851350794,-500.0,0.00015978,2]
[330837042,1719851350814,-500.0,0.00015978,2]
[330837043,1719851350834,-500.0,0.00015978,2]
[330837044,1719851350855,-500.0,0.00015978,2]
[330837045,1719851350877,-500.0,0.00015978,2]
[330837046,1719851350900,-500.0,0.00015978,2]
[330837047,1719851350927,-500.0,0.00015978,2]
[330837048,1719851350949,-500.0,0.00015978,2]
[330837049,1719851350971,-500.0,0.00015978,2]
[330837050,1719851350995,-446.89698853,0.00015978,2]
[330837051,1719851351017,-500.0,0.00015978,2]
[330837052,1719851351039,-500.0,0.0001598,2]
[330837053,1719851351061,-3336.2,0.0001598,2]
[330837054,1719851351080,-502.2537101,0.0001598,2]
[330837055,1719851351100,-500.0,0.0001598,2]
[330837056,1719851351121,-629.35,0.0001598,2]
[330837057,1719851351142,-500.0,0.0001598,2]
[330837058,1719851351163,-829.65,0.0001598,2]
[330837059,1719851351183,-1283.35,0.0001598,2]
[330837060,1719851351203,-727.32,0.0001598,2]
[330837061,1719851351224,-500.0,0.0001598,2]
[330837062,1719851351244,-500.0,0.0001598,2]
[330837063,1719851351264,-500.0,0.0001598,2]
[330837064,1719851351285,-585.99,0.0001598,2]
[330837065,1719851351305,-365.12972261,0.0001598,2]
[330837066,1719851351325,-500.0,0.0001598,2]
[330837067,1719851351347,-4561.4,0.0001598,2]
[330837068,1719851351368,-818.71,0.0001598,2]
[330837069,1719851351390,-1575.53,0.0001598,2]
[330837070,1719851351411,-2246.4,0.0001598,2]
[330837071,1719851351432,-525.75015705,0.0001598,2]
[330837072,1719851351453,-500.0,0.0001598,2]
[330837073,1719851351473,-500.0,0.0001598,2]
[330837074,1719851351494,-500.0,0.0001598,2]
[330837075,1719851351514,-542.83,0.0001598,2]
[330837076,1719851351534,-594.5,0.0001598,2]
[330837077,1719851351556,-500.0,0.0001598,2]
[330837078,1719851351578,-500.0,0.0001598,2]
[330837079,1719851351599,-647.63,0.0001598,2]
[330837080,1719851351620,-856.66,0.0001598,2]
[330837081,1719851351641,-501.2558947,0.0001598,2]
[330837082,1719851351662,-502.8773653,0.0001598,2]
[330837083,1719851351683,-508.06391801,0.0001598,2]
[330837084,1719851351707,-3948.25,0.0001598,2]
[330837085,1719851351729,-500.0,0.0001598,2]
[330837086,1719851351752,-500.0,0.0001598,2]
[330837087,1719851351774,-500.0,0.0001598,2]
[330837088,1719851351796,-598.43,0.0001598,2]
[330837089,1719851351819,-1102.65,0.0001598,2]
[330837090,1719851351840,-502.93296513,0.0001598,2]
[330837091,1719851351862,-1223.62,0.0001598,2]
[330837092,1719851351883,-504.66,0.00015981,2]
[330837093,1719851351904,-500.0,0.00015981,2]
[330837094,1719851351925,-500.0,0.00015981,2]
[330837095,1719851351945,-714.4,0.00015981,2]
[330837096,1719851351966,-504.68878368,0.00015981,2]
[330837097,1719851351986,-504.40219872,0.00015981,2]
[330837098,1719851352007,-500.0,0.00015981,2]
[330837099,1719851352035,-504.6512395,0.00015981,2]
[330837100,1719851352056,-500.0,0.00015981,2]
[330837101,1719851352076,-504.47681493,0.00015981,2]
[330837102,1719851352097,-500.0,0.00015981,2]
[330837103,1719851352118,-500.0,0.00015981,2]
[330837104,1719851352143,-500.0,0.00015981,2]
[330837105,1719851352165,-1458.75,0.00015981,2]
[330837106,1719851352185,-760.68,0.00015981,2]
[330837107,1719851352206,-578.85909441,0.00015981,2]
[330837108,1719851352228,-500.0,0.00015981,2]
[330837109,1719851352248,-500.0,0.00015981,2]
[330837110,1719851352269,-500.0,0.00015981,2]
[330837111,1719851352293,-500.0,0.00015981,2]
[330837112,1719851352314,-500.0,0.00015981,2]
[330837113,1719851352335,-500.0,0.00015981,2]
[330837114,1719851352356,-519.51662251,0.00015981,2]
[330837115,1719851352376,-500.0,0.00015981,2]
[330837116,1719851352397,-682.04,0.00015981,2]
[330837117,1719851352419,-500.0,0.00015981,2]
[330837118,1719851352440,-512.83215358,0.00015981,2]
[330837119,1719851352461,-500.0,0.00015981,2]
[330837120,1719851352483,-500.0,0.00015981,2]
[330837121,1719851352504,-537.49279535,0.00015981,2]
[330837122,1719851352526,-500.0,0.00015981,2]
[330837123,1719851352550,-503.79351121,0.00015981,2]
[330837124,1719851352572,-507.2759486,0.00015981,2]
[330837125,1719851352594,-500.0,0.00015981,2]
[330837126,1719851352616,-500.0,0.00015981,2]
[330837127,1719851352641,-500.0,0.00015981,2]
[330837128,1719851352661,-500.0,0.00015981,2]
[330837129,1719851352682,-500.0,0.00015981,2]
[330837130,1719851352708,-646.8,0.00015981,2]
[330837131,1719851352730,-503.14009241,0.00015981,2]
[330837132,1719851352755,-500.0,0.00015981,2]
[330837133,1719851353908,-526.6702119,0.00015981,2]
[330837134,1719851353933,-500.0,0.00015981,2]
[330837135,1719851353955,-500.0,0.00015981,2]
[330837136,1719851353977,-500.0,0.00015981,2]
[330837137,1719851353999,-500.0,0.00015981,2]
[330837138,1719851354021,-500.0,0.00015981,2]
[330837139,1719851354043,-500.0,0.00015981,2]
[330837140,1719851354066,-500.0,0.00015981,2]
[330837141,1719851354088,-500.0,0.00015981,2]
[330837142,1719851354110,-500.34220139,0.00015981,2]
[330837143,1719851354131,-570.49751011,0.00015981,2]
[330837144,1719851354154,-500.0,0.00015981,2]
[330837145,1719851354174,-500.0,0.00015981,2]
[330837146,1719851354194,-500.0,0.00015981,2]
[330837147,1719851354215,-500.0,0.00015981,2]
[330837148,1719851354238,-500.0,0.00015981,2]
[330837149,1719851354260,-500.0,0.00015981,2]
[330837150,1719851354281,-500.0,0.00015981,2]
[330837151,1719851354302,-626.98,0.00015981,2]
[330837152,1719851354323,-500.0,0.00015981,2]
[330837153,1719851354345,-500.0,0.00015981,2]
[330837154,1719851354367,-295.86843445,0.00015981,2]
[330837155,1719851354391,-500.0,0.00015981,2]
[330837156,1719851354413,-500.0,0.00015981,2]
[330837157,1719851354434,-500.0,0.00015981,2]
[330837158,1719851354455,-504.16876072,0.00015981,2]
[330837159,1719851354476,-3642.03,0.00015981,2]
[330837160,1719851354504,-519.03516727,0.00015981,2]
[330837161,1719851354527,-280.11786584,0.00015981,2]
[330837162,1719851363113,-237.20644037,0.00015977,2]
[330837163,1719851363388,150.81901718,0.00019934,30]
[330837164,1719851363445,150.81901718,0.00019535,120]
[330837165,1719851390399,188.630553,0.00014999,2]
[330837166,1719851390427,654.94562403,0.00014999,2]
[330837167,1719851398902,229.25668703,0.00014999,2]
[330837168,1719851403386,450.44174852,0.00014999,2]
[330837169,1719851404870,250.86085583,0.00014999,2]
[330837210,1719851438413,-262.79355963,0.00015977,2]
[330837211,1719851438423,-500.0,0.00015977,2]
[330837212,1719851438433,-500.0,0.00015977,2]
[330837213,1719851438442,-2944.17,0.00015978,2]
[330837214,1719851438452,-549.2,0.00015979,2]